bitfinex/quotes_ETHUSD_20251221
["timestamp","ask_amount","ask_price","bid_price","bid_amount"]
[1766322161442,0.9815,2992.8,2992.0,0.002]
[1766322161648,0.9815,2992.6,2992.0,0.002]
[1766322162047,1.3806,2992.6,2992.0,0.002]
[1766322165675,0.001,2992.9,2992.0,0.002]
[1766322166049,1.3806,2992.8,2992.0,0.002]
[1766322166449,0.001,2992.9,2992.0,0.002]
[1766322166651,0.3991,2992.7,2992.0,0.002]
[1766322166852,0.3991,2992.5,2992.0,0.002]
[1766322167064,1.3806,2992.4,2992.0,0.002]
[1766322168881,0.9815,2992.6,2992.0,0.002]
[1766322169082,0.3991,2992.3,2992.0,0.002]
[1766322169276,0.9815,2992.2,2992.0,0.002]
[1766322170181,0.3991,2992.5,2992.0,0.002]
[1766322170365,0.9815,2992.2,2992.0,0.002]
[1766322170687,1.3806,2992.2,2992.0,0.002]
[1766322172394,1.3806,2992.8,2991.8,0.002]
[1766322172691,0.001,2992.9,2991.8,0.002]
[1766322172906,1.3806,2992.8,2991.8,0.002]
[1766322173097,0.9815,2992.8,2991.8,0.002]
[1766322173281,0.001,2992.9,2991.8,0.002]
[1766322173282,0.9815,2992.6,2991.8,0.002]
[1766322173486,1.3806,2992.5,2991.8,0.002]
[1766322174192,0.001,2992.9,2991.8,0.002]
[1766322174397,1.3806,2992.7,2991.8,0.002]
[1766322174969,0.9815,2992.8,2991.8,0.002]
[1766322175169,0.9815,2992.6,2991.8,0.002]
[1766322175598,0.3991,2992.7,2991.8,0.002]
[1766322175770,1.3806,2992.7,2991.8,0.002]
[1766322176271,0.001,2992.9,2991.8,0.002]
[1766322176475,1.3806,2992.8,2991.8,0.002]
[1766322176680,1.3806,2992.7,2991.8,0.002]
[1766322178009,1.3806,2992.8,2991.8,0.002]
[1766322178169,0.001,2992.9,2991.8,0.002]
[1766322178601,1.3806,2992.8,2991.8,0.002]
[1766322179095,0.9815,2992.8,2991.8,0.002]
[1766322179305,0.3991,2992.7,2991.8,0.002]
[1766322179481,0.9815,2992.6,2991.8,0.002]
[1766322180898,1.3806,2992.6,2991.8,0.002]
[1766322181405,0.001,2992.9,2991.8,0.002]
[1766322181698,1.3806,2992.8,2991.8,0.002]
[1766322181903,0.9815,2992.6,2991.8,0.002]
[1766322182200,1.3806,2992.1,2991.8,0.002]
[1766322193679,1.3013,2992.1,2991.8,0.002]
[1766322194602,0.3952,2992.0,2991.8,0.002]
[1766322194776,1.3013,2992.0,2991.8,0.002]
[1766322196197,0.9061,2992.1,2991.5,0.002]
[1766322196509,1.3013,2991.7,2991.5,0.002]
[1766322197679,0.001,2992.2,2991.1,0.13592416]
[1766322197680,0.9061,2991.9,2991.1,0.002]
[1766322197938,0.001,2992.2,2990.6,0.13594299]
[1766322197939,0.3952,2991.4,2990.6,0.13594299]
[1766322198110,0.001,2992.2,2990.6,0.13594299]
[1766322198111,1.3013,2991.2,2990.6,0.13594299]
[1766322198281,1.3013,2991.2,2990.6,0.002]
[1766322198481,0.001,2992.2,2990.6,0.002]
[1766322198674,1.3013,2992.0,2990.6,0.002]
[1766322198880,0.9061,2991.8,2990.6,0.002]
[1766322199078,0.9061,2991.6,2990.6,0.002]
[1766322199276,0.9061,2991.4,2990.6,0.002]
[1766322199475,1.3013,2991.3,2990.6,0.002]
[1766322199702,1.3013,2992.0,2990.6,0.002]
[1766322200313,0.01663755,2992.1,2990.6,0.002]
[1766322201008,1.3013,2992.0,2990.6,0.002]
[1766322201215,0.01663755,2992.1,2990.6,0.002]
[1766322201595,0.3952,2991.9,2990.6,0.002]
[1766322201809,0.9061,2991.6,2990.6,0.002]
[1766322201997,1.3013,2991.3,2990.6,0.002]
[1766322202591,0.3952,2991.7,2990.6,0.002]
[1766322202800,0.9061,2991.2,2990.6,0.002]
[1766322203005,1.3013,2990.9,2990.6,0.002]
[1766322209540,0.27063755,2991.6,2990.0,0.13396363]
[1766322209750,1.3401,2991.1,2990.0,0.13396363]
[1766322210037,1.3401,2991.1,2989.6,0.158]
[1766322210448,0.13398113,2991.2,2989.6,0.158]
[1766322210609,1.3401,2991.1,2989.6,0.158]
[1766322210938,0.4011,2990.8,2989.6,0.158]
[1766322211138,0.13398113,2991.2,2989.6,0.158]
[1766322211139,1.3401,2990.6,2989.6,0.158]
[1766322211440,0.13398113,2991.2,2989.6,0.158]
[1766322211641,0.939,2990.9,2989.6,0.158]
[1766322211938,0.4011,2990.6,2989.6,0.158]
[1766322212119,1.3401,2990.4,2989.6,0.158]
[1766322213842,1.3401,2990.4,2989.6,0.062]
[1766322215352,0.38898113,2991.2,2989.6,0.062]
[1766322215653,0.9813,2990.7,2989.6,0.156]
[1766322215857,0.4122,2990.6,2989.6,0.156]
[1766322216023,0.9813,2990.3,2989.6,0.156]
[1766322216360,0.38898113,2991.2,2989.5,0.13398113]
[1766322216515,0.01663755,2991.1,2989.5,0.13398113]
[1766322216721,0.9813,2990.6,2989.4,0.002]
[1766322216920,0.9813,2990.2,2989.4,0.002]
[1766322217127,1.3935,2989.9,2989.4,0.002]
[1766322219524,1.3935,2990.5,2989.4,0.002]
[1766322219731,0.9813,2990.8,2989.4,0.002]
[1766322219929,0.54498113,2990.9,2989.4,0.002]
[1766322220240,1.3935,2991.2,2989.4,0.002]
[1766322220434,0.9813,2991.0,2989.5,0.54498113]
[1766322220635,0.9813,2990.6,2989.4,0.002]
[1766322220831,0.4122,2990.1,2989.4,0.002]
[1766322221032,1.3935,2989.9,2989.4,0.002]
[1766322222447,0.01663755,2990.8,2989.4,0.002]
[1766322222753,0.4122,2990.6,2989.4,0.002]
[1766322222949,0.9813,2990.3,2989.4,0.002]
[1766322223255,0.01663755,2990.8,2989.4,0.002]
[1766322223256,1.3935,2990.1,2989.4,0.002]
[1766322223954,0.01663755,2990.8,2989.4,0.002]
[1766322223955,1.3935,2990.7,2989.4,0.002]
[1766322224156,0.01663755,2990.8,2989.4,0.002]
[1766322224354,0.4122,2990.6,2989.4,0.002]
[1766322224543,0.9813,2990.3,2989.4,0.002]
[1766322224748,0.4122,2990.0,2989.4,0.002]
[1766322224951,1.3935,2989.9,2989.4,0.002]
[1766322227461,1.3935,2989.9,2989.5,0.158]
[1766322228858,0.255,2990.9,2989.5,0.158]
[1766322229037,0.9813,2990.4,2989.5,0.158]
[1766322229242,1.3935,2990.3,2989.5,0.158]
[1766322229449,0.255,2990.9,2989.5,0.158]
[1766322229955,1.3935,2990.6,2989.5,0.158]
[1766322232267,0.001,2990.7,2989.5,0.158]
[1766322232568,0.001,2990.7,2989.6,0.44265226]
[1766322233968,1.3935,2990.6,2989.6,0.44265226]
[1766322234871,1.3935,2990.6,2989.7,0.158]
[1766322235549,1.3935,2990.6,2989.7,0.60065226]
[1766322236776,0.001,2990.7,2989.7,0.60065226]
[1766322237073,0.4122,2990.5,2989.8,0.158]
[1766322237366,1.3935,2990.5,2989.8,0.158]
[1766322237769,0.9813,2990.6,2989.8,0.158]
[1766322238075,1.3935,2990.4,2989.8,0.413]
[1766322238440,1.3935,2990.4,2989.9,0.158]
[1766322239066,0.4122,2990.3,2990.0,0.158]
[1766322239238,1.3935,2990.2,2990.0,0.158]
[1766322239567,0.001,2990.7,2990.0,0.158]
[1766322239776,1.3935,2990.6,2990.0,0.158]
[1766322240260,0.9813,2990.6,2990.0,0.158]
[1766322240479,1.3935,2990.5,2990.0,0.158]
[1766322242769,0.001,2990.6,2990.0,0.158]
[1766322242957,1.3935,2990.5,2990.0,0.158]
[1766322244771,0.001,2990.6,2990.0,0.158]
[1766322247678,0.001,2990.6,2990.0,0.413]
[1766322248669,0.001,2991.0,2990.0,0.413]
[1766322249351,0.001,2991.0,2990.0,0.158]
[1766322249553,0.001,2991.0,2990.1,0.413]
[1766322250490,0.001,2991.0,2990.2,0.157]
[1766322251284,0.001,2991.0,2990.3,0.413]
[1766322253177,1.303,2991.0,2990.4,0.157]
[1766322253986,1.302,2990.9,2990.5,0.157]
[1766322254190,0.001,2991.0,2990.5,0.157]
[1766322254393,1.302,2990.9,2990.2,0.413]
[1766322254575,1.302,2990.9,2990.3,0.157]
[1766322256066,0.9161,2990.9,2990.3,0.157]
[1766322256363,0.001,2991.0,2990.2,0.157]
[1766322256570,0.9161,2990.5,2990.2,0.157]
[1766322256792,1.302,2990.4,2990.2,0.157]
[1766322257958,1.302,2990.4,2989.7,0.413]
[1766322258188,1.302,2990.4,2989.8,0.158]
[1766322258764,0.001,2990.9,2989.8,0.158]
[1766322258964,0.9161,2990.6,2989.8,0.158]
[1766322259298,1.302,2990.6,2989.8,0.158]
[1766322260376,1.302,2990.6,2989.8,0.571]
[1766322262269,0.001,2990.9,2989.5,0.002]
[1766322262270,1.302,2990.8,2989.5,0.002]
[1766322262473,0.01763755,2990.9,2988.5,0.0354616]
[1766322262474,0.93273755,2990.2,2988.7,0.16]
[1766322262669,0.9161,2989.8,2988.7,0.16]
[1766322263030,0.3859,2988.9,2987.7,0.163]
[1766322263175,1.302,2988.5,2987.7,0.323]
[1766322263377,0.257,2988.6,2986.7,0.17492346]
[1766322263691,0.257,2988.6,2986.8,0.16]
[1766322263692,0.3859,2987.9,2986.8,0.16]
[1766322263866,0.3859,2987.5,2986.6,0.003]
[1766322264072,1.302,2987.0,2986.6,0.003]
[1766322264911,0.3859,2987.6,2986.6,0.003]
[1766322265070,0.9161,2987.3,2986.6,0.003]
[1766322265262,1.302,2987.3,2986.6,0.003]
[1766322265675,1.302,2987.3,2987.2,0.002]
[1766322266076,0.9161,2987.9,2987.2,0.002]
[1766322266276,0.257,2988.0,2987.2,0.002]
[1766322266277,0.9161,2987.6,2987.2,0.002]
[1766322266473,0.3859,2987.8,2987.2,0.002]
[1766322266708,1.302,2987.5,2987.2,0.002]
[1766322267183,1.302,2987.8,2987.2,0.002]
[1766322267711,0.257,2988.0,2987.2,0.002]
[1766322267907,0.9161,2987.7,2987.2,0.002]
[1766322268110,1.302,2987.7,2987.2,0.002]
[1766322268306,0.9161,2987.9,2987.2,0.002]
[1766322268508,0.3859,2987.6,2987.2,0.002]
[1766322268713,1.302,2987.5,2987.2,0.002]
[1766322268909,0.257,2988.0,2987.2,0.002]
[1766322269323,0.9161,2987.7,2987.2,0.002]
[1766322269500,0.3859,2987.8,2987.2,0.002]
[1766322270917,1.302,2987.8,2987.2,0.002]
[1766322271415,0.256,2987.9,2986.6,0.003]
[1766322271586,0.9161,2987.6,2986.6,0.003]
[1766322271913,1.302,2987.6,2986.6,0.003]
[1766322272889,1.302,2987.6,2987.1,0.002]
[1766322274220,1.3644,2987.8,2986.6,0.003]
[1766322274441,0.9559,2987.4,2986.6,0.003]
[1766322274595,0.479,2987.7,2986.6,0.003]
[1766322274798,0.9559,2987.6,2986.6,0.003]
[1766322275019,1.3314,2987.3,2986.6,0.003]
[1766322275444,0.479,2987.7,2986.6,0.003]
[1766322275600,0.378,2987.3,2986.6,0.003]
[1766322275805,1.3314,2987.0,2986.6,0.003]
[1766322276705,0.378,2987.2,2986.0,0.002]
[1766322276924,0.9534,2986.9,2986.0,0.002]
[1766322277151,0.378,2986.4,2986.0,0.002]
[1766322277445,0.13417168,2986.9,2986.0,0.002]
[1766322277602,0.9534,2986.7,2984.8,0.002]
[1766322277933,0.378,2986.0,2984.8,0.002]
[1766322278154,0.9534,2985.6,2984.2,0.158]
[1766322278370,0.01663755,2985.7,2983.2,0.17504553]
[1766322278371,0.9534,2984.2,2983.2,0.17504553]
[1766322278570,0.9534,2984.2,2980.3,0.02663754]
[1766322278571,0.378,2983.7,2981.4,0.158]
[1766322278852,0.378,2983.7,2980.3,0.01663755]
[1766322278853,0.378,2982.9,2981.7,0.01663755]
[1766322279051,0.378,2982.7,2981.3,0.01663755]
[1766322279260,0.378,2982.5,2980.7,0.01663755]
[1766322279435,0.378,2982.3,2981.1,0.01663755]
[1766322279622,0.378,2982.1,2981.0,0.01663755]
[1766322279828,0.378,2982.1,2980.5,0.4019]
[1766322280029,0.378,2981.9,2979.6,0.4019]
[1766322280329,0.378,2981.9,2979.5,0.01663755]
[1766322280330,0.378,2981.7,2980.5,0.4019]
[1766322280542,0.378,2981.7,2980.4,0.01663755]
[1766322280543,0.9534,2983.0,2980.9,0.4019]
[1766322280855,0.9534,2983.0,2981.2,0.4019]
[1766322281353,0.9534,2983.0,2980.7,0.41853755]
[1766322281541,0.9534,2982.8,2980.4,0.4019]
[1766322281724,0.9534,2982.6,2980.5,0.01663755]
[1766322282056,0.9534,2982.4,2980.4,0.4019]
[1766322282255,0.256,2982.5,2979.7,0.4019]
[1766322282256,0.9534,2982.2,2979.7,0.4019]
[1766322282422,0.378,2982.1,2979.9,0.4019]
[1766322282624,0.9534,2981.8,2980.0,0.6019]
[1766322282944,0.01663755,2980.5,2979.1,4.485e-05]
[1766322283145,0.9534,2978.6,2975.9,0.9321]
[1766322283344,0.9534,2977.9,2977.3,0.6019]
[1766322283548,0.378,2978.2,2976.7,0.9321]
[1766322284366,0.9321,2978.6,2976.9,0.9321]
[1766322284571,0.378,2979.0,2977.1,0.9321]
[1766322284736,0.378,2979.0,2975.9,0.63550327]
[1766322284737,0.97003755,2978.5,2977.0,0.9321]
[1766322284935,0.97003755,2978.5,2975.9,0.6019]
[1766322284936,0.378,2978.4,2977.2,0.4851]
[1766322285139,0.378,2978.5,2977.9,0.01663755]
[1766322285336,0.378,2979.1,2978.6,0.01663755]
[1766322285539,0.378,2979.5,2978.3,0.01663755]
[1766322286358,0.378,2980.0,2978.5,0.01663755]
[1766322286665,0.9534,2979.5,2977.5,0.01663755]
[1766322286837,0.01663755,2980.6,2977.5,0.01663755]
[1766322286838,0.13450012,2979.9,2978.3,0.01663755]
[1766322287038,0.378,2979.8,2978.4,0.9321]
[1766322287238,1.3314,2981.2,2978.8,0.9321]
[1766322287466,0.9534,2980.8,2978.8,1.0901]
[1766322287636,0.378,2980.7,2978.8,1.0901]
[1766322287838,0.9534,2980.2,2978.8,1.0901]
[1766322288038,0.378,2979.7,2978.4,0.9321]
[1766322288238,1.3314,2979.5,2977.9,0.9321]
[1766322288438,0.378,2978.9,2977.9,0.9321]
[1766322288633,0.9534,2978.7,2977.8,0.158]
[1766322288888,0.378,2978.1,2976.9,0.9321]
[1766322289050,0.378,2977.7,2976.8,0.002]
[1766322289249,0.01663755,2977.0,2975.8,0.01124346]
[1766322289440,0.9534,2976.2,2974.4,0.9341]
[1766322289644,0.9534,2976.2,2974.6,0.9321]
[1766322289950,0.378,2976.6,2974.6,0.94873755]
[1766322290166,0.378,2976.5,2974.8,0.9321]
[1766322290471,0.378,2976.4,2974.8,0.9321]
[1766322290658,0.378,2976.2,2974.8,0.9321]
[1766322290834,0.9534,2975.7,2974.4,0.002]
[1766322291043,0.39463755,2976.9,2974.1,0.8841]
[1766322291236,0.01663755,2977.9,2974.2,0.03362248]
[1766322291237,0.378,2976.7,2974.2,0.03362248]
[1766322291542,0.378,2976.3,2973.7,0.378]
[1766322291751,0.378,2975.4,2973.7,0.378]
[1766322291953,1.3314,2974.6,2970.0,0.66396918]
[1766322292188,0.2,2972.9,2969.8,0.01663755]
[1766322292351,0.428,2973.6,2969.0,0.17155943]
[1766322292352,1.3314,2972.1,2969.0,0.17155943]
[1766322292540,0.777,2971.5,2969.3,0.01663755]
[1766322292836,0.378,2970.8,2969.9,0.01663755]
[1766322293040,0.783504,2970.6,2970.1,0.01663755]
[1766322293250,0.378,2970.5,2969.7,0.01663755]
[1766322293441,0.405504,2971.0,2970.3,0.01663755]
[1766322293639,0.378,2971.0,2970.1,0.01663755]
[1766322293873,0.378,2971.0,2969.9,0.94873755]
[1766322293874,0.378,2971.0,2969.9,0.9321]
[1766322294103,0.38993068,2971.4,2969.4,0.01663755]
[1766322294104,0.378,2970.6,2969.4,0.01663755]
[1766322294389,0.378,2970.0,2969.7,0.01663755]
[1766322294687,0.57378047,2970.3,2969.8,0.01663755]
[1766322294855,0.378,2971.0,2970.1,0.01663755]
[1766322295039,0.378,2970.8,2970.2,0.01663755]
[1766322295241,0.378,2970.8,2970.0,0.01663755]
[1766322295483,0.378,2970.8,2970.2,0.01663755]
[1766322295773,0.378,2970.8,2969.6,0.01663755]
[1766322295941,0.378,2970.8,2969.8,0.01663755]
[1766322296139,0.378,2970.8,2968.8,0.01663755]
[1766322296140,0.9534,2972.5,2971.5,0.01663755]
[1766322296341,0.9534,2972.9,2971.3,0.01663755]
[1766322296573,0.13483199,2972.6,2972.1,0.002]
[1766322296782,0.9534,2973.6,2971.2,0.01663755]
[1766322296989,0.9534,2973.6,2969.6,0.01663755]
[1766322296990,0.9534,2972.9,2971.0,0.002]
[1766322297144,0.13482176,2973.6,2971.9,0.01663755]
[1766322297353,0.13482176,2973.6,2972.7,0.01663755]
[1766322297543,0.9534,2973.9,2972.9,0.01663755]
[1766322297782,0.13477066,2974.1,2973.4,0.01663755]
[1766322297947,0.9534,2975.2,2974.1,0.01663755]
[1766322298149,0.378,2975.7,2974.9,0.02017044]
[1766322298345,0.13468512,2976.0,2974.7,0.9321]
[1766322298576,0.27517044,2977.5,2973.0,0.9321]
[1766322298577,0.378,2975.3,2973.0,0.9321]
[1766322298876,0.02017044,2975.9,2973.7,0.95227044]
[1766322298877,0.378,2974.9,2973.7,0.95227044]
[1766322299077,0.378,2975.4,2974.2,0.02017044]
[1766322299275,0.9534,2975.9,2974.5,0.9321]
[1766322299276,1.3314,2975.9,2974.5,0.9321]
[1766322299483,0.378,2975.4,2973.8,0.9321]
[1766322299666,0.378,2975.3,2973.8,0.9321]
[1766322299868,0.255,2975.8,2972.7,0.02017044]
[1766322300182,0.255,2975.8,2972.8,0.9321]
[1766322300183,0.02017044,2975.5,2972.8,0.9321]
[1766322300348,1.3314,2975.6,2973.5,0.9321]
[1766322300548,0.9534,2975.5,2973.7,0.9321]
[1766322300849,0.378,2974.6,2972.4,1.0901]
[1766322301184,0.378,2974.5,2973.3,0.9321]
[1766322301553,0.378,2973.9,2971.7,0.13478996]
[1766322301880,0.255,2974.6,2971.7,0.9321]
[1766322301881,0.9534,2973.5,2971.7,0.9321]
[1766322302075,0.378,2973.4,2972.1,0.9321]
[1766322302277,0.9534,2973.7,2972.1,0.9321]
[1766322302486,0.9321,2973.9,2972.3,0.9321]
[1766322302784,0.378,2974.6,2972.5,0.9321]
[1766322302956,0.255,2975.3,2972.5,0.9321]
[1766322302957,0.378,2974.4,2972.5,0.9321]
[1766322303151,0.378,2973.3,2971.3,1.06688996]
[1766322303352,0.378,2973.1,2971.4,0.0538246]
[1766322303551,0.378,2973.8,2971.7,0.9321]
[1766322303751,0.9534,2973.1,2971.7,0.9321]
[1766322303980,0.378,2973.6,2971.7,0.9321]
[1766322304188,0.378,2974.3,2972.2,0.02017044]
[1766322304486,0.378,2974.3,2972.5,0.9321]
[1766322304853,0.9622,2973.8,2972.2,0.158]
[1766322305057,0.4024,2973.6,2971.8,0.9321]
[1766322305250,0.4024,2973.6,2972.0,0.9454]
[1766322305461,0.9622,2973.3,2971.5,0.158]
[1766322305661,0.4024,2973.0,2971.6,0.9454]
[1766322306094,0.4024,2972.6,2971.5,0.158]
[1766322306306,0.4024,2972.8,2971.5,0.158]
[1766322306594,0.9622,2972.5,2971.0,0.002]
[1766322306900,23.500273,2972.6,2970.0,0.002]
[1766322306901,0.9622,2971.5,2970.0,0.002]
[1766322307056,0.4024,2971.8,2970.1,0.9454]
[1766322307660,0.9622,2972.6,2970.3,0.9454]
[1766322307855,0.4024,2972.5,2970.5,0.9454]
[1766322308120,0.9474,2972.7,2970.5,0.9454]
[1766322308121,0.9474,2972.7,2971.0,0.02017044]
[1766322308403,0.4024,2973.6,2972.0,0.9454]
[1766322308600,0.4024,2973.6,2972.2,0.9454]
[1766322308755,0.4024,2973.5,2972.2,0.9454]
[1766322309187,0.42257044,2973.5,2971.1,0.9454]
[1766322309598,0.4024,2973.5,2971.3,0.9454]
[1766322309796,0.4024,2973.5,2971.5,0.9454]
[1766322310621,0.9622,2973.4,2971.5,0.9454]
[1766322310804,0.42257044,2972.7,2970.9,0.158]
[1766322310968,0.4024,2972.3,2971.0,0.9454]
[1766322311298,0.4024,2972.1,2970.9,0.158]
[1766322311505,0.9622,2971.6,2970.0,0.002]
[1766322311704,0.4024,2970.9,2969.1,0.9454]
[1766322311873,0.4024,2970.3,2969.4,0.9454]
[1766322312068,0.4024,2969.8,2968.5,0.158]
[1766322312268,1.3646,2968.8,2967.4,0.4024]
[1766322312569,0.02017044,2968.9,2966.7,0.099]
[1766322312570,0.4024,2968.6,2966.7,0.099]
[1766322312904,0.02017044,2969.3,2966.7,0.099]
[1766322312905,1.3646,2969.9,2967.8,0.02017044]
[1766322313068,0.65798482,2968.6,2966.7,0.099]
[1766322313268,0.65798482,2968.6,2965.8,0.68319176]
[1766322313269,0.65798482,2968.6,2966.8,0.158]
[1766322313606,0.02017044,2969.2,2966.8,0.158]
[1766322313607,0.4024,2969.0,2966.8,0.158]
[1766322313904,0.02017044,2968.9,2966.9,0.36589811]
[1766322314066,0.0337065,2968.8,2967.0,0.9454]
[1766322314267,0.42257044,2969.1,2967.0,0.9454]
[1766322314268,0.158,2969.0,2967.0,0.96557044]
[1766322314477,0.4024,2969.7,2967.7,0.9454]
[1766322314806,0.02017044,2969.8,2967.6,0.002]
[1766322314807,0.02017044,2969.0,2967.6,0.002]
[1766322315014,0.4024,2968.4,2967.6,0.002]
[1766322315187,0.4024,2968.4,2966.1,0.8954]
[1766322315188,0.9622,2967.8,2966.1,0.8954]
[1766322315380,0.4024,2967.6,2966.1,0.8954]
[1766322315711,0.4024,2967.1,2965.8,0.158]
[1766322315913,0.4024,2967.1,2966.0,0.9454]
[1766322316207,0.4024,2967.9,2966.0,0.9454]
[1766322316630,0.02017044,2968.5,2966.0,0.9454]
[1766322316631,10.815096,2968.9,2966.4,0.02017044]
[1766322316782,9.133578,2968.7,2966.9,0.02017044]
[1766322317116,1.11524862,2968.8,2967.0,0.19170407]
[1766322317332,0.02017044,2969.2,2966.6,0.9454]
[1766322317537,0.02017044,2970.9,2967.3,0.9454]
[1766322317674,0.02017044,2970.9,2967.7,0.9454]
[1766322317675,0.9622,2970.3,2967.7,0.9454]
[1766322317884,0.02017044,2971.3,2967.6,0.02017044]
[1766322317885,0.9622,2970.8,2968.4,0.9454]
[1766322318132,0.9622,2971.8,2969.3,0.02017044]
[1766322318413,0.9622,2971.8,2969.6,0.9454]
[1766322318598,0.02017044,2973.3,2969.5,0.02017044]
[1766322318599,0.4024,2972.5,2970.2,0.9454]
[1766322318775,0.4024,2972.5,2970.4,0.9454]
[1766322318982,0.4024,2972.5,2970.6,0.9454]
[1766322319178,1.3646,2972.5,2970.6,0.9454]
[1766322319410,0.4024,2973.2,2970.8,0.9454]
[1766322319614,0.4024,2972.6,2970.8,1.1024]
[1766322320115,0.4024,2972.6,2971.0,0.9454]
[1766322320484,0.4024,2973.1,2971.2,0.9454]
[1766322320810,0.4024,2972.7,2971.2,0.9454]
[1766322321514,0.4024,2973.2,2971.2,0.9454]
[1766322322227,0.4024,2972.5,2970.8,0.157]
[1766322322527,0.001,2971.8,2970.8,0.157]
[1766322322828,0.4024,2971.7,2970.8,0.157]
[1766322322999,0.4024,2971.7,2969.4,0.002]
[1766322323000,0.4024,2971.3,2969.9,0.9454]
[1766322323537,0.98237044,2971.3,2969.6,0.9454]
[1766322323859,0.98237044,2971.3,2969.4,0.002]
[1766322323860,0.9622,2970.4,2969.4,0.002]
[1766322324129,0.4024,2970.8,2969.5,0.9454]
[1766322324350,0.253,2971.4,2969.5,0.9454]
[1766322324351,0.4024,2971.5,2969.5,1.1024]
[1766322324893,0.4024,2971.5,2969.6,0.03367456]
[1766322325098,0.9622,2972.8,2970.0,0.9454]
[1766322325331,0.001,2973.0,2970.4,0.9454]
[1766322325534,0.001,2973.0,2970.6,0.9454]
[1766322325706,0.001,2973.0,2971.1,0.9454]
[1766322325907,0.42257044,2973.8,2971.3,0.9454]
[1766322326116,0.4024,2973.8,2971.5,0.9454]
[1766322326311,0.4024,2973.8,2971.7,0.9454]
[1766322326511,1.38477044,2974.4,2971.7,0.9454]
[1766322326695,0.02017044,2974.3,2971.9,0.9454]
[1766322326900,0.42257044,2974.1,2971.9,0.9454]
[1766322327194,0.02017044,2974.3,2971.9,0.9454]
[1766322327195,1.3646,2973.9,2971.9,0.9454]
[1766322327528,0.4024,2973.5,2971.9,0.9454]
[1766322327693,0.02017044,2973.3,2971.9,0.9454]
[1766322327899,0.42257044,2973.3,2971.9,0.9454]
[1766322328501,0.9622,2975.1,2972.6,0.9454]
[1766322328700,0.4024,2974.8,2972.8,0.9454]
[1766322328939,0.4024,2974.8,2972.9,0.03363718]
[1766322329141,0.4024,2974.8,2973.4,0.9454]
[1766322329906,0.9622,2974.3,2972.7,0.157]
[1766322330203,0.9622,2974.1,2972.7,0.157]
[1766322330413,0.3938,2973.6,2971.9,1.1269]
[1766322331415,0.3938,2973.1,2971.9,0.157]
[1766322331609,0.3938,2972.9,2971.9,0.157]
[1766322331807,0.3938,2972.7,2971.4,0.9699]
[1766322332824,0.3938,2972.3,2971.1,0.157]
[1766322333043,0.3938,2972.1,2971.1,0.157]
[1766322333341,0.3938,2971.3,2970.0,0.9699]
[1766322333647,0.9446,2970.9,2969.4,0.002]
[1766322333847,0.252,2971.3,2969.0,0.002]
[1766322333848,0.3938,2970.4,2969.0,0.002]
[1766322334147,0.3938,2970.0,2969.0,0.002]
[1766322334309,0.9446,2969.3,2967.8,0.002]
[1766322334656,0.3938,2969.0,2967.8,0.002]
[1766322334809,0.3938,2970.3,2968.4,0.9699]
[1766322335009,0.02017044,2971.9,2970.3,0.9603]
[1766322335010,2.964008,2971.6,2970.3,0.9603]
[1766322335251,0.7428908,2971.6,2970.4,0.02017044]
[1766322335540,0.4059,2971.5,2970.4,0.02017044]
[1766322336109,0.252,2972.6,2969.2,0.9603]
[1766322336110,0.4059,2971.3,2969.2,0.9603]
[1766322336307,0.4059,2970.7,2968.8,0.9603]
[1766322336541,0.4059,2970.3,2968.8,0.9603]
[1766322336706,0.4059,2970.0,2968.8,0.9603]
[1766322337104,0.4059,2969.9,2968.6,0.157]
[1766322337416,0.4059,2969.5,2968.2,0.9603]
[1766322337616,0.9516,2969.2,2967.9,0.157]
[1766322337814,0.4059,2969.1,2967.9,0.157]
[1766322338044,0.4059,2969.1,2967.5,0.9603]
[1766322338045,0.4059,2969.0,2967.5,0.9603]
[1766322338341,0.02017044,2970.6,2967.2,0.17717044]
[1766322338342,0.4059,2969.7,2968.2,0.9603]
[1766322338517,0.02017044,2970.8,2968.1,0.02017044]
[1766322338518,0.4059,2970.4,2969.0,0.9603]
[1766322338716,0.9516,2970.8,2969.2,0.9603]
[1766322338905,0.4059,2970.7,2969.3,1.1173]
[1766322339726,0.2,2972.5,2969.3,1.1173]
[1766322339727,0.4059,2971.3,2969.8,0.9603]
[1766322339927,0.4059,2971.3,2970.0,0.9603]
[1766322340668,0.4059,2970.5,2968.6,0.157]
[1766322340816,0.4059,2970.3,2968.6,1.1173]
[1766322341433,0.4059,2970.2,2968.6,1.1173]
[1766322341946,0.4059,2971.3,2969.0,0.9603]
[1766322342244,0.4059,2971.0,2969.2,0.9603]
[1766322342440,0.4059,2971.0,2969.4,0.9603]
[1766322342605,0.4059,2971.0,2969.6,0.9603]
[1766322343533,0.251,2972.0,2969.5,0.157]
[1766322343534,0.4059,2970.6,2969.5,0.157]